[Event "Live Chess"]
[Site "Chess.com"]
[Date "2010.12.15"]
[Round "-"]
[White "hipposcottimus"]
[Black "cesarcavalli"]
[Result "0-1"]
[CurrentPosition "r1b1k3/pp2bpp1/4p1p1/3p3r/3B4/2P1N3/PP1Q1PPq/R4RK1 w q -"]
[Timezone "UTC"]
[ECO "C02"]
[ECOUrl "https://www.chess.com/openings/French-Defense-Advance-Nimzowitsch-System"]
[UTCDate "2010.12.15"]
[UTCTime "00:57:38"]
[WhiteElo "1647"]
[BlackElo "1800"]
[TimeControl "60"]
[Termination "cesarcavalli won by checkmate"]
[StartTime "00:57:38"]
[EndDate "2010.12.15"]
[EndTime "00:58:37"]
[Link "https://www.chess.com/game/live/77386041"]

1. e4 {[%clk 0:01:00]} 1... e6 {[%clk 0:01:00]} 2. Nf3 {[%clk 0:00:59.7]} 2... d5 {[%clk 0:00:59.7]} 3. e5 {[%clk 0:00:58.7]} 3... c5 {[%clk 0:00:58.3]} 4. d4 {[%clk 0:00:57.5]} 4... Nc6 {[%clk 0:00:58]} 5. Be3 {[%clk 0:00:55.9]} 5... cxd4 {[%clk 0:00:57.1]} 6. Bxd4 {[%clk 0:00:54.9]} 6... Nge7 {[%clk 0:00:56.7]} 7. c3 {[%clk 0:00:51.4]} 7... Ng6 {[%clk 0:00:56.4]} 8. Bd3 {[%clk 0:00:49.4]} 8... Qc7 {[%clk 0:00:56]} 9. Bxg6 {[%clk 0:00:47.4]} 9... hxg6 {[%clk 0:00:54.4]} 10. O-O {[%clk 0:00:45.6]} 10... Be7 {[%clk 0:00:49.3]} 11. Qd2 {[%clk 0:00:42.9]} 11... Rh5 {[%clk 0:00:44.1]} 12. Na3 {[%clk 0:00:40.2]} 12... Nxe5 {[%clk 0:00:43.1]} 13. Nxe5 {[%clk 0:00:36.8]} 13... Rxe5 {[%clk 0:00:42.7]} 14. Nc2 {[%clk 0:00:31.7]} 14... Rh5 {[%clk 0:00:41]} 15. Ne3 {[%clk 0:00:28.9]} 15... Qxh2# {[%clk 0:00:40.1]} 0-1

[Event "Live Chess"]
[Site "Chess.com"]
[Date "2010.12.14"]
[Round "-"]
[White "kinghenry13"]
[Black "hipposcottimus"]
[Result "0-1"]
[CurrentPosition "r4k2/pp3p2/5P2/5p2/2PB4/3n4/PP4PP/6KR w - -"]
[Timezone "UTC"]
[ECO "C31"]
[ECOUrl "https://www.chess.com/openings/Kings-Gambit-Declined-Falkbeer-Accepted-Staunton-Line"]
[UTCDate "2010.12.14"]
[UTCTime "17:22:46"]
[WhiteElo "1620"]
[BlackElo "1652"]
[TimeControl "60"]
[Termination "hipposcottimus won on time"]
[StartTime "17:22:46"]
[EndDate "2010.12.14"]
[EndTime "17:24:37"]
[Link "https://www.chess.com/game/live/77264597"]

1. e4 {[%clk 0:01:00]} 1... e5 {[%clk 0:01:00]} 2. f4 {[%clk 0:00:59.1]} 2... d5 {[%clk 0:00:58.2]} 3. exd5 {[%clk 0:00:57.7]} 3... e4 {[%clk 0:00:57.4]} 4. c4 {[%clk 0:00:55.6]} 4... Nf6 {[%clk 0:00:55.5]} 5. Nc3 {[%clk 0:00:54.3]} 5... c6 {[%clk 0:00:54.4]} 6. d3 {[%clk 0:00:51.2]} 6... cxd5 {[%clk 0:00:53.4]} 7. dxe4 {[%clk 0:00:50.3]} 7... dxe4 {[%clk 0:00:51.8]} 8. Qxd8+ {[%clk 0:00:48.6]} 8... Kxd8 {[%clk 0:00:51.6]} 9. Be3 {[%clk 0:00:45.6]} 9... Bd6 {[%clk 0:00:51.1]} 10. Nh3 {[%clk 0:00:43.2]} 10... Ke7 {[%clk 0:00:50.6]} 11. Ng5 {[%clk 0:00:42.1]} 11... Re8 {[%clk 0:00:50.1]} 12. Ngxe4 {[%clk 0:00:40.1]} 12... Kf8 {[%clk 0:00:49.6]} 13. Nxf6 {[%clk 0:00:39.1]} 13... Re6 {[%clk 0:00:48.6]} 14. Nxh7+ {[%clk 0:00:36.6]} 14... Kg8 {[%clk 0:00:47.1]} 15. Kf2 {[%clk 0:00:35.4]} 15... Kxh7 {[%clk 0:00:44.8]} 16. Bd3+ {[%clk 0:00:34.4]} 16... g6 {[%clk 0:00:43.3]} 17. Rae1 {[%clk 0:00:32.5]} 17... Kg8 {[%clk 0:00:39.8]} 18. Nd5 {[%clk 0:00:31.4]} 18... Nc6 {[%clk 0:00:35.8]} 19. f5 {[%clk 0:00:30.1]} 19... Re5 {[%clk 0:00:33.3]} 20. f6 {[%clk 0:00:28.2]} 20... Bf5 {[%clk 0:00:30.7]} 21. Bxf5 {[%clk 0:00:26.3]} 21... Rxf5+ {[%clk 0:00:30.4]} 22. Kg1 {[%clk 0:00:13.6]} 22... Ne5 {[%clk 0:00:29.3]} 23. Bd4 {[%clk 0:00:09.6]} 23... Nd3 {[%clk 0:00:27.1]} 24. Re7 {[%clk 0:00:05.5]} 24... Bxe7 {[%clk 0:00:23.3]} 25. Nxe7+ {[%clk 0:00:03.3]} 25... Kf8 {[%clk 0:00:21.7]} 26. Nxf5 {[%clk 0:00:01.8]} 26... gxf5 {[%clk 0:00:20.7]} 0-1

[Event "Live Chess"]
[Site "Chess.com"]
[Date "2010.12.14"]
[Round "-"]
[White "hipposcottimus"]
[Black "rudebwoi"]
[Result "1-0"]
[CurrentPosition "6k1/1q4p1/6QN/3p4/p2P4/4PK2/6PP/8 b - -"]
[Timezone "UTC"]
[ECO "C00"]
[ECOUrl "https://www.chess.com/openings/French-Defense-Knight-Variation"]
[UTCDate "2010.12.14"]
[UTCTime "17:20:25"]
[WhiteElo "1644"]
[BlackElo "1568"]
[TimeControl "60"]
[Termination "hipposcottimus won on time"]
[StartTime "17:20:25"]
[EndDate "2010.12.14"]
[EndTime "17:22:22"]
[Link "https://www.chess.com/game/live/77263930"]

1. e4 {[%clk 0:01:00]} 1... e6 {[%clk 0:01:00]} 2. Nf3 {[%clk 0:00:59.5]} 2... d6 {[%clk 0:00:59.7]} 3. d4 {[%clk 0:00:59]} 3... Nc6 {[%clk 0:00:59.4]} 4. c4 {[%clk 0:00:58.2]} 4... d5 {[%clk 0:00:58.9]} 5. cxd5 {[%clk 0:00:56.7]} 5... exd5 {[%clk 0:00:58.6]} 6. e5 {[%clk 0:00:56.4]} 6... Bg4 {[%clk 0:00:55.9]} 7. Nc3 {[%clk 0:00:56.1]} 7... Bb4 {[%clk 0:00:53.9]} 8. Bb5 {[%clk 0:00:54.2]} 8... a6 {[%clk 0:00:52.5]} 9. Bxc6+ {[%clk 0:00:52.9]} 9... bxc6 {[%clk 0:00:52.2]} 10. O-O {[%clk 0:00:51.5]} 10... Ne7 {[%clk 0:00:51.7]} 11. a3 {[%clk 0:00:48.7]} 11... Bxc3 {[%clk 0:00:50.4]} 12. bxc3 {[%clk 0:00:48.4]} 12... O-O {[%clk 0:00:49.5]} 13. Qd3 {[%clk 0:00:48]} 13... f6 {[%clk 0:00:48.1]} 14. Bd2 {[%clk 0:00:42.9]} 14... fxe5 {[%clk 0:00:46.8]} 15. Nxe5 {[%clk 0:00:41.1]} 15... Qd6 {[%clk 0:00:40.5]} 16. Nxg4 {[%clk 0:00:38.1]} 16... c5 {[%clk 0:00:39.3]} 17. Qh3 {[%clk 0:00:32.6]} 17... cxd4 {[%clk 0:00:37.3]} 18. cxd4 {[%clk 0:00:32.3]} 18... Nf5 {[%clk 0:00:35.9]} 19. Be3 {[%clk 0:00:31.9]} 19... Nxe3 {[%clk 0:00:25.1]} 20. fxe3 {[%clk 0:00:30.1]} 20... Rxf1+ {[%clk 0:00:24.8]} 21. Rxf1 {[%clk 0:00:28.4]} 21... Rf8 {[%clk 0:00:23.8]} 22. Ne5 {[%clk 0:00:27]} 22... Rxf1+ {[%clk 0:00:22]} 23. Kxf1 {[%clk 0:00:26.7]} 23... h6 {[%clk 0:00:19.2]} 24. Kg1 {[%clk 0:00:26]} 24... Qxa3 {[%clk 0:00:18]} 25. Qc8+ {[%clk 0:00:25.3]} 25... Kh7 {[%clk 0:00:17.4]} 26. Qxc7 {[%clk 0:00:24.2]} 26... Qa1+ {[%clk 0:00:16]} 27. Kf2 {[%clk 0:00:22.4]} 27... Qb2+ {[%clk 0:00:15]} 28. Kf3 {[%clk 0:00:22.1]} 28... a5 {[%clk 0:00:10.8]} 29. Qf7 {[%clk 0:00:21.7]} 29... a4 {[%clk 0:00:09.5]} 30. Qg6+ {[%clk 0:00:21.3]} 30... Kg8 {[%clk 0:00:08.4]} 31. Qf7+ {[%clk 0:00:20.5]} 31... Kh7 {[%clk 0:00:07.7]} 32. Qg6+ {[%clk 0:00:20.2]} 32... Kg8 {[%clk 0:00:06.6]} 33. Nf7 {[%clk 0:00:19.6]} 33... Qb7 {[%clk 0:00:01.3]} 34. Nxh6+ {[%clk 0:00:19.2]} 1-0

[Event "Live Chess"]
[Site "Chess.com"]
[Date "2010.12.14"]
[Round "-"]
[White "SaidTaktak"]
[Black "hipposcottimus"]
[Result "1-0"]
[CurrentPosition "5k1R/pp1R4/6p1/2p2r2/2P5/6K1/nr6/8 b - -"]
[Timezone "UTC"]
[ECO "C42"]
[ECOUrl "https://www.chess.com/openings/Petrovs-Defense-Urusov-Gambit"]
[UTCDate "2010.12.14"]
[UTCTime "14:00:46"]
[WhiteElo "1440"]
[BlackElo "1437"]
[TimeControl "360"]
[Termination "SaidTaktak won by checkmate"]
[StartTime "14:00:46"]
[EndDate "2010.12.14"]
[EndTime "14:08:39"]
[Link "https://www.chess.com/game/live/77212169"]

1. e4 {[%clk 0:06:00]} 1... e5 {[%clk 0:06:00]} 2. Bc4 {[%clk 0:05:59.5]} 2... Nf6 {[%clk 0:05:56.2]} 3. Nf3 {[%clk 0:05:58.4]} 3... d5 {[%clk 0:05:48]} 4. exd5 {[%clk 0:05:54]} 4... e4 {[%clk 0:05:45.5]} 5. Qe2 {[%clk 0:05:44.1]} 5... Nxd5 {[%clk 0:05:41.6]} 6. Qxe4+ {[%clk 0:05:40.2]} 6... Ne7 {[%clk 0:05:40.7]} 7. Ng5 {[%clk 0:05:31.5]} 7... Be6 {[%clk 0:05:29.4]} 8. Bxe6 {[%clk 0:05:15.9]} 8... fxe6 {[%clk 0:05:23.9]} 9. Qxe6 {[%clk 0:05:13.7]} 9... Qd5 {[%clk 0:05:09.9]} 10. Qf7+ {[%clk 0:04:57.2]} 10... Qxf7 {[%clk 0:05:08.2]} 11. Nxf7 {[%clk 0:04:55.2]} 11... Kxf7 {[%clk 0:05:07.9]} 12. O-O {[%clk 0:04:54]} 12... Ng6 {[%clk 0:05:07.5]} 13. f4 {[%clk 0:04:49.9]} 13... Be7 {[%clk 0:05:01.5]} 14. f5 {[%clk 0:04:46.9]} 14... Ne5 {[%clk 0:04:58.1]} 15. d4 {[%clk 0:04:43.5]} 15... Nec6 {[%clk 0:04:56.1]} 16. d5 {[%clk 0:04:33.9]} 16... Nb4 {[%clk 0:04:54.9]} 17. Na3 {[%clk 0:04:29.7]} 17... Nxd5 {[%clk 0:04:53.9]} 18. c4 {[%clk 0:04:24.2]} 18... Nf6 {[%clk 0:04:51.2]} 19. Nc2 {[%clk 0:04:20.3]} 19... Rf8 {[%clk 0:04:50.7]} 20. g4 {[%clk 0:04:14]} 20... Kg8 {[%clk 0:04:49.9]} 21. g5 {[%clk 0:04:12.4]} 21... Ne4 {[%clk 0:04:47]} 22. Nd4 {[%clk 0:04:00]} 22... Nxg5 {[%clk 0:04:44.7]} 23. h4 {[%clk 0:03:54.2]} 23... Ne4 {[%clk 0:04:39.4]} 24. Re1 {[%clk 0:03:45.3]} 24... Bc5 {[%clk 0:03:55.7]} 25. Rxe4 {[%clk 0:03:34.6]} 25... Rxf5 {[%clk 0:03:49.4]} 26. b4 {[%clk 0:03:15.1]} 26... Bxd4+ {[%clk 0:03:39.7]} 27. Rxd4 {[%clk 0:03:13.7]} 27... Nc6 {[%clk 0:03:39.3]} 28. Rg4 {[%clk 0:03:07.6]} 28... Nxb4 {[%clk 0:03:38.2]} 29. Bb2 {[%clk 0:02:59.5]} 29... g6 {[%clk 0:03:34.9]} 30. h5 {[%clk 0:02:56.9]} 30... Rxh5 {[%clk 0:03:31.3]} 31. Rd1 {[%clk 0:02:46.7]} 31... Nxa2 {[%clk 0:03:24.7]} 32. Rd7 {[%clk 0:02:43.8]} 32... Rc5 {[%clk 0:03:18.4]} 33. Rg7+ {[%clk 0:02:37.8]} 33... Kf8 {[%clk 0:03:17.9]} 34. Rf4+ {[%clk 0:02:31.9]} 34... Rf5 {[%clk 0:03:12.7]} 35. Rd4 {[%clk 0:02:11.7]} 35... c5 {[%clk 0:03:00]} 36. Rdd7 {[%clk 0:02:09.1]} 36... Re8 {[%clk 0:02:55.4]} 37. Rxh7 {[%clk 0:01:46.2]} 37... Re1+ {[%clk 0:02:53.3]} 38. Kg2 {[%clk 0:01:44.9]} 38... Re2+ {[%clk 0:02:52.6]} 39. Kg3 {[%clk 0:01:43.4]} 39... Rxb2 {[%clk 0:02:52]} 40. Rh8# {[%clk 0:01:35.4]} 1-0

[Event "Live Chess"]
[Site "Chess.com"]
[Date "2010.12.14"]
[Round "-"]
[White "hipposcottimus"]
[Black "Witty29"]
[Result "0-1"]
[CurrentPosition "8/8/1k6/7K/8/8/6q1/5r2 b - -"]
[Timezone "UTC"]
[ECO "C41"]
[ECOUrl "https://www.chess.com/openings/Philidor-Defense-3.Bc4"]
[UTCDate "2010.12.14"]
[UTCTime "13:56:30"]
[WhiteElo "1637"]
[BlackElo "1651"]
[TimeControl "60"]
[Termination "Witty29 won by resignation"]
[StartTime "13:56:30"]
[EndDate "2010.12.14"]
[EndTime "13:58:55"]
[Link "https://www.chess.com/game/live/77211038"]

1. e4 {[%clk 0:01:00]} 1... e5 {[%clk 0:01:00]} 2. Nf3 {[%clk 0:00:59.8]} 2... d6 {[%clk 0:00:59.7]} 3. Bc4 {[%clk 0:00:59.5]} 3... c5 {[%clk 0:00:59.4]} 4. d4 {[%clk 0:00:59.3]} 4... h6 {[%clk 0:00:59.1]} 5. dxe5 {[%clk 0:00:58.1]} 5... a6 {[%clk 0:00:58.6]} 6. exd6 {[%clk 0:00:55.5]} 6... Bxd6 {[%clk 0:00:58.4]} 7. O-O {[%clk 0:00:53.8]} 7... Qc7 {[%clk 0:00:58]} 8. e5 {[%clk 0:00:53.5]} 8... Be7 {[%clk 0:00:56.5]} 9. Re1 {[%clk 0:00:51.4]} 9... Nc6 {[%clk 0:00:55.6]} 10. e6 {[%clk 0:00:50]} 10... Bxe6 {[%clk 0:00:53.3]} 11. Bxe6 {[%clk 0:00:49.6]} 11... fxe6 {[%clk 0:00:52.4]} 12. Rxe6 {[%clk 0:00:49.1]} 12... Nf6 {[%clk 0:00:51.6]} 13. Qe2 {[%clk 0:00:46.6]} 13... O-O {[%clk 0:00:45.8]} 14. Ne5 {[%clk 0:00:44.2]} 14... Nxe5 {[%clk 0:00:44]} 15. Qxe5 {[%clk 0:00:44]} 15... Bd6 {[%clk 0:00:42.6]} 16. Qe4 {[%clk 0:00:41.4]} 16... Bxh2+ {[%clk 0:00:41.6]} 17. Kf1 {[%clk 0:00:39.5]} 17... Qb6 {[%clk 0:00:39.8]} 18. Rxb6 {[%clk 0:00:37]} 18... Nxe4 {[%clk 0:00:37.7]} 19. Rxb7 {[%clk 0:00:35.2]} 19... Rfd8 {[%clk 0:00:34.4]} 20. Nc3 {[%clk 0:00:34.6]} 20... Nxc3 {[%clk 0:00:32.6]} 21. bxc3 {[%clk 0:00:33.4]} 21... Rd1+ {[%clk 0:00:31.6]} 22. Ke2 {[%clk 0:00:33.1]} 22... Rh1 {[%clk 0:00:29.5]} 23. Rab1 {[%clk 0:00:30.9]} 23... Rd8 {[%clk 0:00:29.1]} 24. Rb8 {[%clk 0:00:27.4]} 24... Rxb8 {[%clk 0:00:25.4]} 25. Rxb8+ {[%clk 0:00:27]} 25... Kf7 {[%clk 0:00:25.2]} 26. Ba3 {[%clk 0:00:25.3]} 26... Bxb8 {[%clk 0:00:24.1]} 27. Bxc5 {[%clk 0:00:24.4]} 27... Ra1 {[%clk 0:00:22.9]} 28. a3 {[%clk 0:00:22.3]} 28... Ra2 {[%clk 0:00:21.9]} 29. Kd2 {[%clk 0:00:21.8]} 29... Bc7 {[%clk 0:00:20.2]} 30. Bb4 {[%clk 0:00:21.4]} 30... Be5 {[%clk 0:00:17.9]} 31. c4 {[%clk 0:00:20.2]} 31... Ke6 {[%clk 0:00:17.4]} 32. Bc3 {[%clk 0:00:19.4]} 32... Bd6 {[%clk 0:00:16.7]} 33. Bb4 {[%clk 0:00:18.3]} 33... Bxb4+ {[%clk 0:00:15.8]} 34. axb4 {[%clk 0:00:18]} 34... Ra4 {[%clk 0:00:15]} 35. Kc3 {[%clk 0:00:17.8]} 35... Ra1 {[%clk 0:00:13.4]} 36. c5 {[%clk 0:00:17.5]} 36... Rg1 {[%clk 0:00:12.9]} 37. c6 {[%clk 0:00:17.1]} 37... Kd6 {[%clk 0:00:11.4]} 38. c7 {[%clk 0:00:16.7]} 38... Kxc7 {[%clk 0:00:10.7]} 39. b5 {[%clk 0:00:16.4]} 39... Kb6 {[%clk 0:00:09.8]} 40. Kb4 {[%clk 0:00:15.8]} 40... axb5 {[%clk 0:00:08.9]} 41. c3 {[%clk 0:00:15.5]} 41... Rxg2 {[%clk 0:00:08.2]} 42. c4 {[%clk 0:00:15.3]} 42... bxc4 {[%clk 0:00:07.4]} 43. Kxc4 {[%clk 0:00:14.6]} 43... Rxf2 {[%clk 0:00:07.1]} 44. Kd4 {[%clk 0:00:14.3]} 44... g5 {[%clk 0:00:06.8]} 45. Ke5 {[%clk 0:00:14]} 45... Rf8 {[%clk 0:00:06.5]} 46. Ke4 {[%clk 0:00:13.3]} 46... g4 {[%clk 0:00:06.2]} 47. Ke5 {[%clk 0:00:13.1]} 47... g3 {[%clk 0:00:05.9]} 48. Ke6 {[%clk 0:00:12.8]} 48... g2 {[%clk 0:00:05.7]} 49. Ke7 {[%clk 0:00:11.5]} 49... Rf1 {[%clk 0:00:05.5]} 50. Kd6 {[%clk 0:00:09.8]} 50... g1=Q {[%clk 0:00:04.5]} 51. Kd5 {[%clk 0:00:09.5]} 51... Qc5+ {[%clk 0:00:04]} 52. Ke6 {[%clk 0:00:08.3]} 52... Rd1 {[%clk 0:00:03.7]} 53. Kf6 {[%clk 0:00:06.6]} 53... Qe3 {[%clk 0:00:03.4]} 54. Kg6 {[%clk 0:00:06.3]} 54... Rf1 {[%clk 0:00:02.3]} 55. Kh5 {[%clk 0:00:06]} 55... Qg3 {[%clk 0:00:01.7]} 56. Kxh6 {[%clk 0:00:04.2]} 56... Qg2 {[%clk 0:00:01.3]} 57. Kh5 {[%clk 0:00:02]} 0-1

[Event "Live Chess"]
[Site "Chess.com"]
[Date "2010.12.14"]
[Round "-"]
[White "dantime13"]
[Black "hipposcottimus"]
[Result "0-1"]
[CurrentPosition "4rrk1/pp3ppp/8/3P3n/1P6/8/P7/4K3 w - -"]
[Timezone "UTC"]
[ECO "C40"]
[ECOUrl "https://www.chess.com/openings/Kings-Pawn-Opening-Kings-Knight-Gunderam-Gambit"]
[UTCDate "2010.12.14"]
[UTCTime "11:48:29"]
[WhiteElo "1629"]
[BlackElo "1645"]
[TimeControl "60"]
[Termination "hipposcottimus won by resignation"]
[StartTime "11:48:29"]
[EndDate "2010.12.14"]
[EndTime "11:50:27"]
[Link "https://www.chess.com/game/live/77183493"]

1. e4 {[%clk 0:01:00]} 1... e5 {[%clk 0:01:00]} 2. Nf3 {[%clk 0:00:59.1]} 2... c6 {[%clk 0:00:59.5]} 3. c3 {[%clk 0:00:58.7]} 3... d5 {[%clk 0:00:59]} 4. exd5 {[%clk 0:00:57.4]} 4... e4 {[%clk 0:00:58.3]} 5. c4 {[%clk 0:00:57.4]} 5... exf3 {[%clk 0:00:56.7]} 6. Qxf3 {[%clk 0:00:56.7]} 6... cxd5 {[%clk 0:00:55.5]} 7. cxd5 {[%clk 0:00:55.1]} 7... Be7 {[%clk 0:00:55.2]} 8. Bc4 {[%clk 0:00:54.3]} 8... Nf6 {[%clk 0:00:54.3]} 9. O-O {[%clk 0:00:53.6]} 9... O-O {[%clk 0:00:52.9]} 10. d3 {[%clk 0:00:51.9]} 10... Qe8 {[%clk 0:00:51.9]} 11. Rd1 {[%clk 0:00:50]} 11... Bg4 {[%clk 0:00:51.1]} 12. Qe3 {[%clk 0:00:38.4]} 12... Bxd1 {[%clk 0:00:50.3]} 13. Nc3 {[%clk 0:00:37.2]} 13... Bh5 {[%clk 0:00:43.6]} 14. g4 {[%clk 0:00:35.4]} 14... Bxg4 {[%clk 0:00:42.2]} 15. f3 {[%clk 0:00:34.7]} 15... Bh5 {[%clk 0:00:41.3]} 16. Bd2 {[%clk 0:00:32.6]} 16... Bg6 {[%clk 0:00:40.4]} 17. b4 {[%clk 0:00:31.2]} 17... Nbd7 {[%clk 0:00:39.3]} 18. Qf2 {[%clk 0:00:29.6]} 18... Bd6 {[%clk 0:00:38.2]} 19. f4 {[%clk 0:00:28.9]} 19... Nh5 {[%clk 0:00:35.9]} 20. Re1 {[%clk 0:00:26.8]} 20... Qd8 {[%clk 0:00:34.6]} 21. Re3 {[%clk 0:00:25.2]} 21... Bxf4 {[%clk 0:00:32.4]} 22. Re2 {[%clk 0:00:21.9]} 22... Bxd2 {[%clk 0:00:31.4]} 23. Rxd2 {[%clk 0:00:21.3]} 23... Qg5+ {[%clk 0:00:30.7]} 24. Kf1 {[%clk 0:00:19.3]} 24... Bxd3+ {[%clk 0:00:27.9]} 25. Rxd3 {[%clk 0:00:18]} 25... Qc1+ {[%clk 0:00:27.2]} 26. Nd1 {[%clk 0:00:15.8]} 26... Qxc4 {[%clk 0:00:24.9]} 27. Kg1 {[%clk 0:00:12.9]} 27... Qxd3 {[%clk 0:00:22.5]} 28. Ne3 {[%clk 0:00:09.6]} 28... Qg6+ {[%clk 0:00:21.9]} 29. Ng4 {[%clk 0:00:07.4]} 29... Ne5 {[%clk 0:00:20.4]} 30. h3 {[%clk 0:00:03.7]} 30... Nxg4 {[%clk 0:00:19.5]} 31. hxg4 {[%clk 0:00:03.1]} 31... Qxg4+ {[%clk 0:00:19.2]} 32. Kf1 {[%clk 0:00:03.1]} 32... Qd1+ {[%clk 0:00:18.7]} 33. Qe1 {[%clk 0:00:01.9]} 33... Qxe1+ {[%clk 0:00:18]} 34. Kxe1 {[%clk 0:00:01.9]} 34... Rae8+ {[%clk 0:00:17.7]} 0-1

[Event "Live Chess"]
[Site "Chess.com"]
[Date "2010.12.14"]
[Round "-"]
[White "hipposcottimus"]
[Black "dantime13"]
[Result "1-0"]
[CurrentPosition "8/p1r5/2kp4/2pb4/Pp1p4/7R/2P2PPP/3R2K1 b - -"]
[Timezone "UTC"]
[ECO "B12"]
[ECOUrl "https://www.chess.com/openings/Caro-Kann-Defense-2.d4"]
[UTCDate "2010.12.14"]
[UTCTime "11:45:47"]
[WhiteElo "1637"]
[BlackElo "1637"]
[TimeControl "60"]
[Termination "hipposcottimus won on time"]
[StartTime "11:45:47"]
[EndDate "2010.12.14"]
[EndTime "11:48:05"]
[Link "https://www.chess.com/game/live/77182919"]

1. e4 {[%clk 0:01:00]} 1... c6 {[%clk 0:01:00]} 2. d4 {[%clk 0:00:59.1]} 2... b5 {[%clk 0:01:00]} 3. d5 {[%clk 0:00:58.6]} 3... Bb7 {[%clk 0:01:00]} 4. d6 {[%clk 0:00:57.5]} 4... exd6 {[%clk 0:00:58.9]} 5. Nf3 {[%clk 0:00:55.3]} 5... d5 {[%clk 0:00:57.1]} 6. e5 {[%clk 0:00:54.6]} 6... f6 {[%clk 0:00:55.4]} 7. Qe2 {[%clk 0:00:52]} 7... fxe5 {[%clk 0:00:51.7]} 8. Nxe5 {[%clk 0:00:49.8]} 8... Ne7 {[%clk 0:00:48.5]} 9. Qh5+ {[%clk 0:00:46.6]} 9... g6 {[%clk 0:00:47.2]} 10. Qe2 {[%clk 0:00:44.4]} 10... Bg7 {[%clk 0:00:46]} 11. Bg5 {[%clk 0:00:43.3]} 11... Bxe5 {[%clk 0:00:44.5]} 12. Qxe5 {[%clk 0:00:42.2]} 12... Rf8 {[%clk 0:00:43]} 13. Bd3 {[%clk 0:00:40.2]} 13... Rf5 {[%clk 0:00:41]} 14. Qh8+ {[%clk 0:00:35.9]} 14... Rf8 {[%clk 0:00:38.3]} 15. Qg7 {[%clk 0:00:34.8]} 15... Nf5 {[%clk 0:00:34.9]} 16. Qe5+ {[%clk 0:00:32]} 16... Ne7 {[%clk 0:00:28.9]} 17. O-O {[%clk 0:00:30.8]} 17... d6 {[%clk 0:00:28.2]} 18. Qe6 {[%clk 0:00:29.5]} 18... Bc8 {[%clk 0:00:26.3]} 19. Bxg6+ {[%clk 0:00:25.1]} 19... Rf7 {[%clk 0:00:18.5]} 20. Bxf7+ {[%clk 0:00:22.9]} 20... Kf8 {[%clk 0:00:17.4]} 21. Bxe7+ {[%clk 0:00:21.1]} 21... Qxe7 {[%clk 0:00:16]} 22. Qxe7+ {[%clk 0:00:20.4]} 22... Kxe7 {[%clk 0:00:15.4]} 23. Re1+ {[%clk 0:00:18.9]} 23... Kxf7 {[%clk 0:00:14.4]} 24. Nc3 {[%clk 0:00:18.6]} 24... Be6 {[%clk 0:00:13.3]} 25. Rad1 {[%clk 0:00:17.3]} 25... Nd7 {[%clk 0:00:12.7]} 26. Re2 {[%clk 0:00:16.8]} 26... b4 {[%clk 0:00:11.7]} 27. Rde1 {[%clk 0:00:16]} 27... Re8 {[%clk 0:00:09.5]} 28. Na4 {[%clk 0:00:12.9]} 28... Nc5 {[%clk 0:00:07.5]} 29. b3 {[%clk 0:00:11.8]} 29... Nxa4 {[%clk 0:00:06.3]} 30. bxa4 {[%clk 0:00:11.5]} 30... c5 {[%clk 0:00:06.3]} 31. Re3 {[%clk 0:00:10.4]} 31... d4 {[%clk 0:00:06.3]} 32. Rf3+ {[%clk 0:00:09.7]} 32... Ke7 {[%clk 0:00:04.8]} 33. Rf1 {[%clk 0:00:09.3]} 33... Kd7 {[%clk 0:00:04.2]} 34. Rg3 {[%clk 0:00:08.8]} 34... Bc4 {[%clk 0:00:03.2]} 35. Rg7+ {[%clk 0:00:08.4]} 35... Kc6 {[%clk 0:00:02.8]} 36. Rd1 {[%clk 0:00:06.8]} 36... Bxa2 {[%clk 0:00:01.2]} 37. Rxh7 {[%clk 0:00:05.2]} 37... Bd5 {[%clk 0:00:00.3]} 38. Rh6 {[%clk 0:00:04.6]} 38... Rc8 {[%clk 0:00:00.3]} 39. Rh7 {[%clk 0:00:02.9]} 39... Rc7 {[%clk 0:00:00.3]} 40. Rh3 {[%clk 0:00:02.4]} 1-0